bitfinex/quotes_BTCUSD_20250219
["timestamp","ask_amount","ask_price","bid_price","bid_amount"]
[1739976000678,1.21985896,96644.0,96643.0,0.0004256]
[1739976000889,2.84145581,96644.0,96613.0,0.0004257]
[1739976001091,0.305257,96614.0,96613.0,0.0004257]
[1739976001298,0.40776065,96614.0,96613.0,0.0004257]
[1739976001885,0.42398325,96614.0,96613.0,0.0004257]
[1739976002511,1.09834825,96614.0,96613.0,0.0004257]
[1739976002713,0.64582925,96614.0,96613.0,0.0004257]
[1739976002916,0.55950025,96614.0,96613.0,0.0004257]
[1739976003122,0.42498325,96614.0,96613.0,0.0004257]
[1739976003547,0.42698325,96614.0,96613.0,0.0004257]
[1739976003755,0.41076065,96614.0,96613.0,0.0004257]
[1739976003959,1.1074285,96614.0,96613.0,0.0004257]
[1739976004125,1.1054285,96614.0,96613.0,0.0004257]
[1739976004326,0.305263,96610.0,96609.0,5e-07]
[1739976004494,0.4223075,96610.0,96609.0,5e-07]
[1739976004881,0.52481115,96610.0,96609.0,5e-07]
[1739976005098,0.60581115,96610.0,96609.0,5e-07]
[1739976005369,0.62581115,96610.0,96609.0,5e-07]
[1739976005828,0.02,96596.0,96563.0,0.00836]
[1739976006038,0.305306,96583.0,96563.0,0.00836]
[1739976006239,0.40780965,96583.0,96563.0,0.00836]
[1739976006644,0.42403882,96583.0,96563.0,0.00836]
[1739976007289,0.50683882,96583.0,96563.0,0.00836]
[1739976007463,0.56935158,96583.0,96552.0,0.0008528]
[1739976007666,0.90809243,96583.0,96552.0,0.0092128]
[1739976007870,0.79773882,96583.0,96552.0,0.09188818]
[1739976008077,0.79773882,96583.0,96582.0,0.0018524]
[1739976008477,0.79773882,96583.0,96582.0,0.0008524]
[1739976008689,0.44293282,96583.0,96582.0,0.0008524]
[1739976008886,0.34042917,96583.0,96582.0,0.0008524]
[1739976009434,0.01822917,96583.0,96582.0,0.02068955]
[1739976009651,0.01822917,96583.0,96582.0,0.1561604]
[1739976009828,0.01822917,96583.0,96582.0,0.2785012]
[1739976010056,0.01922917,96583.0,96582.0,0.2785012]
[1739976010262,0.01922917,96583.0,96582.0,0.02068955]
[1739976011074,0.17453517,96583.0,96582.0,0.02904955]
[1739976011481,0.17153517,96583.0,96582.0,0.0092124]
[1739976011678,0.17253517,96583.0,96582.0,0.0092124]
[1739976012022,0.17453517,96583.0,96582.0,0.0092124]
[1739976012583,0.17253517,96583.0,96582.0,0.0092124]
[1739976013016,0.01722917,96583.0,96582.0,0.0092124]
[1739976013220,0.01722917,96583.0,96582.0,0.1302524]
[1739976013422,0.206961,96637.0,96583.0,0.15]
[1739976013543,0.42670365,96636.0,96611.0,0.08267538]
[1739976013752,0.09201762,96651.0,96622.0,0.08267538]
[1739976013958,0.09201762,96651.0,96623.0,0.00836]
[1739976014160,0.09201762,96651.0,96642.0,0.08267538]
[1739976014619,0.09201762,96651.0,96643.0,0.01963094]
[1739976014824,0.1552,96650.0,96643.0,0.01963094]
[1739976015055,0.09201762,96651.0,96643.0,0.01963094]
[1739976015384,0.206938,96648.0,96644.0,0.00836]
[1739976015656,0.09201762,96659.0,96644.0,0.00836]
[1739976015857,0.155204,96647.0,96644.0,0.00736]
[1739976016061,0.155203,96648.0,96644.0,0.00736]
[1739976016310,0.19452127,96659.0,96644.0,0.00736]
[1739976016517,0.155198,96651.0,96644.0,0.00736]
[1739976016752,0.155199,96650.0,96644.0,0.00736]
[1739976016957,0.19452127,96659.0,96644.0,0.00736]
[1739976017133,0.155187,96657.0,96645.0,0.01962419]
[1739976017306,0.19452127,96659.0,96645.0,0.01962419]
[1739976017711,0.155203,96648.0,96645.0,0.01962419]
[1739976018093,0.155199,96650.0,96644.0,0.00736]
[1739976018290,0.155196,96652.0,96644.0,0.00736]
[1739976018504,0.155196,96652.0,96632.0,0.08267538]
[1739976018505,0.19452127,96659.0,96632.0,0.08267538]
[1739976018715,0.10250365,96658.0,96633.0,0.00836]
[1739976019280,0.09201762,96659.0,96658.0,0.155186]
[1739976019406,0.09201762,96659.0,96658.0,0.17476628]
[1739976019614,0.09201762,96659.0,96658.0,0.27726993]
[1739976019812,0.0008512,96662.0,96658.0,0.27726993]
[1739976019813,0.0008512,96662.0,96658.0,0.12208393]
[1739976020115,0.0008512,96662.0,96661.0,0.16972185]
[1739976020314,0.155097,96714.0,96674.0,0.15016]
[1739976020513,0.155103,96710.0,96674.0,0.26102365]
[1739976020731,0.41664352,96721.0,96674.0,0.26102365]
[1739976020925,0.207653,96711.0,96674.0,0.2805499]
[1739976021135,0.155103,96710.0,96674.0,0.2805499]
[1739976021336,0.000851,96711.0,96674.0,0.29509075]
[1739976021960,0.000851,96711.0,96674.0,0.29409075]
[1739976022337,0.000851,96711.0,96674.0,0.46409075]
[1739976023158,0.155105,96709.0,96674.0,0.46409075]
[1739976023354,0.000851,96711.0,96674.0,0.44409075]
[1739976023918,0.000851,96711.0,96674.0,0.43709075]
[1739976024317,0.155104,96709.0,96674.0,0.44409075]
[1739976024562,0.000851,96711.0,96674.0,0.44409075]
[1739976024768,0.155104,96710.0,96674.0,0.44409075]
[1739976024978,0.000851,96711.0,96674.0,0.44409075]
[1739976024979,0.155108,96707.0,96674.0,0.44409075]
[1739976025179,0.000851,96711.0,96674.0,0.44409075]
[1739976025373,0.206806,96709.0,96674.0,0.44409075]
[1739976025612,0.000851,96711.0,96674.0,0.44409075]
[1739976025779,0.155104,96710.0,96674.0,0.76869075]
[1739976025990,0.155952,96711.0,96674.0,0.76869075]
[1739976026243,0.155104,96709.0,96674.0,0.76869075]
[1739976026502,0.000851,96711.0,96674.0,0.76869075]
[1739976026703,0.000851,96711.0,96674.0,0.76033075]
[1739976026904,0.000851,96711.0,96674.0,0.4689499]
[1739976027101,0.206847,96690.0,96674.0,0.4689499]
[1739976027276,0.206824,96701.0,96674.0,0.6241099]
[1739976027482,0.000851,96711.0,96674.0,0.6241099]
[1739976028176,0.206808,96709.0,96674.0,0.6241099]
[1739976028373,0.155111,96705.0,96674.0,0.6241099]
[1739976028613,0.15512,96699.0,96674.0,0.6241099]
[1739976028816,0.206835,96696.0,96674.0,0.6241099]
[1739976029017,0.155131,96693.0,96674.0,0.6241099]
[1739976029151,0.155132,96692.0,96674.0,0.6241099]
[1739976029350,0.206833,96696.0,96674.0,0.6241099]
[1739976029583,0.206837,96695.0,96674.0,0.6241099]
[1739976029789,0.206837,96695.0,96674.0,0.6157899]
[1739976029993,0.155139,96688.0,96674.0,0.52160625]
[1739976030180,0.000851,96711.0,96674.0,0.6241099]
[1739976030385,0.155126,96695.0,96674.0,0.6241099]
[1739976030591,0.155128,96694.0,96674.0,0.6229099]
[1739976030764,0.206807,96709.0,96674.0,0.6229099]
[1739976030954,0.206832,96697.0,96674.0,0.6229099]
[1739976031155,0.206835,96696.0,96674.0,0.6229099]
[1739976031380,0.206827,96700.0,96674.0,0.6229099]
[1739976031589,0.155134,96691.0,96674.0,0.6229099]
[1739976031791,0.155136,96690.0,96674.0,0.6229099]
[1739976032162,0.20684,96693.0,96674.0,0.61281763]
[1739976032371,0.15514,96687.0,96674.0,0.61281763]
[1739976032596,0.206823,96702.0,96674.0,0.61281763]
[1739976032754,0.155131,96693.0,96674.0,0.61281763]
[1739976032954,0.206823,96702.0,96674.0,0.61281763]
[1739976033267,0.155134,96691.0,96674.0,0.61281763]
[1739976033492,0.155132,96692.0,96674.0,0.61281763]
[1739976034270,0.15513,96693.0,96674.0,0.61281763]
[1739976034490,0.206823,96702.0,96674.0,0.60449763]
[1739976034694,0.1560102,96675.0,96674.0,0.34683398]
[1739976034956,0.1560102,96675.0,96674.0,0.3386]
[1739976035518,0.1560102,96675.0,96674.0,0.3316]
[1739976035898,0.1560102,96675.0,96674.0,0.3386]
[1739976036125,0.1560102,96675.0,96674.0,0.3316]
[1739976036330,0.1560102,96675.0,96674.0,0.3386]
[1739976036529,0.1560102,96675.0,96674.0,0.014]
[1739976038846,0.18500445,96675.0,96674.0,0.014]
[1739976039050,0.2875081,96675.0,96674.0,0.007]
[1739976039280,0.155189,96656.0,96655.0,0.00828]
[1739976039482,0.1552,96650.0,96646.0,0.00828]
[1739976039820,0.155201,96649.0,96646.0,0.00828]
[1739976039954,0.155203,96647.0,96646.0,0.00828]
[1739976040151,0.206935,96649.0,96646.0,0.00828]
[1739976040351,0.155202,96648.0,96646.0,0.00828]
[1739976040567,0.155203,96647.0,96646.0,0.00828]
[1739976041187,0.01621424,96662.0,96646.0,0.01528]
[1739976041389,0.01621424,96662.0,96647.0,0.00103468]
[1739976041592,0.01621424,96662.0,96648.0,0.10250365]
[1739976041948,0.155166,96671.0,96656.0,0.206918]
[1739976042158,0.01621366,96674.0,96657.0,0.10353813]
[1739976042367,0.01621366,96674.0,96658.0,0.206915]
[1739976042579,0.01621366,96674.0,96659.0,0.10250365]
[1739976042779,0.155173,96667.0,96658.0,0.10250365]
[1739976042982,0.0008512,96675.0,96658.0,0.10250365]
[1739976043180,0.20688,96674.0,96662.0,0.155178]
[1739976043409,0.155163,96673.0,96663.0,0.155177]
[1739976043624,0.155163,96672.0,96663.0,0.155177]
[1739976043827,0.0008512,96675.0,96658.0,0.31441765]
[1739976043828,0.15517,96668.0,96659.0,0.005]
[1739976044032,0.15517,96668.0,96658.0,0.10250365]
[1739976044236,0.20689,96670.0,96662.0,0.005]
[1739976044444,0.206885,96672.0,96663.0,0.155178]
[1739976044636,0.155162,96673.0,96664.0,0.155176]
[1739976044764,0.0008512,96675.0,96663.0,0.206904]
[1739976044970,0.0008512,96675.0,96671.0,0.155163]
[1739976045177,0.0008512,96675.0,96672.0,0.155162]
[1739976045392,0.0008512,96675.0,96670.0,0.155166]
[1739976046089,0.0008512,96675.0,96672.0,0.206883]
[1739976046231,0.0008512,96675.0,96664.0,0.103538]
[1739976046442,0.0008512,96675.0,96664.0,0.10250365]
[1739976046649,0.0008512,96675.0,96663.0,0.0004255]
[1739976046650,0.155176,96664.0,96663.0,0.0004255]
[1739976046904,0.0008512,96675.0,96665.0,0.00824]
[1739976047139,0.0008512,96675.0,96670.0,0.163165]
[1739976047344,0.0008512,96675.0,96670.0,0.004]
[1739976047554,0.1560112,96675.0,96670.0,0.004]
[1739976047762,0.0008512,96675.0,96665.0,0.00824]
[1739976047966,0.0008512,96675.0,96668.0,0.155169]
[1739976048299,0.0008512,96675.0,96667.0,0.155171]
[1739976048529,0.0008512,96675.0,96665.0,0.163414]
[1739976048730,0.0008512,96675.0,96666.0,0.155173]
[1739976049065,0.0008512,96675.0,96665.0,0.00824]
[1739976049217,0.0008512,96675.0,96666.0,0.155171]
[1739976049425,0.0008512,96675.0,96670.0,0.004]
[1739976050055,0.155165,96671.0,96670.0,0.004]
[1739976050256,0.0008512,96675.0,96665.0,0.00824]
[1739976050419,0.0008512,96675.0,96666.0,0.004]
[1739976050617,0.155165,96671.0,96670.0,0.004]
[1739976051042,0.155165,96671.0,96670.0,0.011]
[1739976051242,0.155165,96671.0,96670.0,0.007]
[1739976051860,0.5438507,96671.0,96670.0,0.007]
[1739976052270,0.305171,96667.0,96666.0,0.006]
[1739976052469,0.40767465,96667.0,96666.0,0.006]
[1739976052708,0.40767465,96667.0,96666.0,0.012]
[1739976052908,0.305176,96664.0,96663.0,0.0004255]
[1739976053108,0.40767965,96664.0,96663.0,0.0004255]
[1739976053591,0.73187965,96664.0,96663.0,0.0004255]
[1739976053799,0.40767965,96664.0,96663.0,0.0004255]
[1739976055645,0.40767965,96664.0,96663.0,0.0054255]
[1739976055851,0.40767965,96664.0,96663.0,0.0004255]
[1739976056052,0.40767965,96664.0,96663.0,0.0014255]
[1739976056212,0.40767965,96664.0,96663.0,0.0024255]
[1739976056615,0.42389521,96664.0,96663.0,0.0024255]
[1739976063396,0.68019886,96664.0,96663.0,0.0024255]
[1739976063593,0.6639833,96664.0,96663.0,0.0024255]
[1739976063807,0.6639833,96664.0,96633.0,0.2326]
[1739976063808,0.233007,96645.0,96633.0,0.2326]
[1739976064026,0.53511065,96645.0,96633.0,0.2326]
[1739976064229,0.53511065,96645.0,96620.0,0.0082]
[1739976065184,0.53511065,96645.0,96611.0,0.08267538]
[1739976065402,0.85931065,96645.0,96615.0,0.0082]
[1739976065608,0.85931065,96645.0,96590.0,0.083]
[1739976065609,0.155255,96615.0,96614.0,0.0082]
[1739976066044,0.155273,96604.0,96588.0,0.155298]
[1739976066252,0.155273,96604.0,96581.0,0.5457]
[1739976066253,0.207037,96601.0,96581.0,0.207078]
[1739976066463,0.207009,96614.0,96592.0,0.00816]
[1739976066644,0.155279,96601.0,96592.0,0.00816]
[1739976067087,0.15528,96600.0,96592.0,0.00816]
[1739976067296,0.10250365,96614.0,96592.0,0.00816]
[1739976067922,0.155278,96601.0,96592.0,0.01516]
[1739976068105,0.01622318,96609.0,96592.0,0.01516]
[1739976068521,0.15529,96593.0,96592.0,0.01516]
[1739976068756,0.15529,96593.0,96592.0,0.014]
[1739976069164,0.15529,96593.0,96587.0,0.2408]
[1739976069370,0.15529,96593.0,96592.0,0.006]
[1739976069571,0.15529,96593.0,96592.0,0.011]
[1739976069923,0.15529,96593.0,96592.0,0.013]
[1739976071296,0.155298,96588.0,96587.0,0.23264]
[1739976071424,0.155298,96588.0,96587.0,0.23964]
[1739976071649,0.155298,96588.0,96587.0,0.23264]
[1739976073135,0.155298,96588.0,96587.0,0.23764]
[1739976073335,0.155298,96588.0,96587.0,0.005]
[1739976074373,0.155298,96588.0,96587.0,0.01]
[1739976074746,0.25780165,96588.0,96587.0,0.005]
[1739976075129,0.25780165,96588.0,96587.0,0.008]
[1739976075540,0.155297,96589.0,96587.0,0.003]
[1739976075744,0.15,96600.0,96587.0,0.006]
[1739976075943,0.15,96598.0,96587.0,0.006]
[1739976076159,0.155298,96588.0,96587.0,0.006]
[1739976076555,0.207062,96590.0,96582.0,0.0008524]
[1739976076762,0.15,96595.0,96587.0,0.002]
[1739976076970,0.155298,96588.0,96587.0,0.002]
[1739976077385,0.008586,96613.0,96587.0,0.10250365]
[1739976077597,0.008586,96613.0,96598.0,0.207043]
[1739976077812,0.048,96647.0,96607.0,0.08267538]
[1739976078013,0.10250365,96646.0,96617.0,0.08267538]
[1739976078220,0.0162222,96630.0,96617.0,0.18517903]
[1739976078452,0.0162222,96630.0,96617.0,0.08267538]
[1739976078661,0.206979,96628.0,96614.0,0.00816]
[1739976078868,0.15,96629.0,96614.0,0.00816]
[1739976079075,0.15,96629.0,96614.0,0.00716]
[1739976079296,0.0162222,96630.0,96615.0,0.155255]
[1739976079513,0.206977,96629.0,96617.0,0.008]
[1739976079729,0.155242,96624.0,96617.0,0.004]
[1739976079932,0.0162222,96630.0,96614.0,0.00716]
[1739976080132,0.0162222,96630.0,96614.0,0.219167]
[1739976080333,0.0162222,96630.0,96614.0,0.01616]
[1739976080618,0.155239,96625.0,96614.0,0.01616]
[1739976080822,0.0162222,96630.0,96614.0,0.01616]
[1739976081269,0.155255,96615.0,96614.0,0.004]
[1739976081687,0.30947865,96630.0,96612.0,0.00816]
[1739976081890,0.10250365,96630.0,96617.0,0.006]
[1739976082092,0.15525,96618.0,96617.0,0.006]
[1739976082553,0.01622208,96625.0,96607.0,0.00816]
[1739976082768,0.155266,96608.0,96607.0,0.00816]
[1739976082987,0.155265,96609.0,96607.0,0.00816]
[1739976083192,0.155266,96608.0,96607.0,0.00816]
[1739976083398,0.155259,96613.0,96607.0,0.00816]
[1739976083631,0.18012975,96620.0,96617.0,0.005]
[1739976083837,0.15,96624.0,96617.0,0.005]
[1739976084046,0.15525,96618.0,96617.0,0.005]
[1739976084456,0.15525,96618.0,96617.0,0.01]
[1739976084659,0.15525,96618.0,96617.0,0.005]
[1739976084894,0.155255,96615.0,96614.0,0.0004255]
[1739976085329,0.155254,96616.0,96614.0,0.0004255]
[1739976085531,0.15,96624.0,96614.0,0.0004255]
[1739976085764,0.206983,96627.0,96614.0,0.0004255]
[1739976085981,0.50432975,96640.0,96617.0,0.005]
[1739976086215,0.3242,96640.0,96626.0,0.155236]
[1739976086431,0.479415,96640.0,96626.0,0.155237]
[1739976086641,0.18012975,96660.0,96619.0,0.01454085]
[1739976086858,0.15,96649.0,96620.0,0.10250365]
[1739976087073,0.155246,96621.0,96617.0,0.0825]
[1739976087287,0.15,96639.0,96616.0,0.08267538]
[1739976087502,0.15,96629.0,96614.0,0.0034255]
[1739976087703,0.155255,96615.0,96614.0,0.0084255]
[1739976087940,0.155255,96615.0,96614.0,0.0034255]
[1739976088195,0.155255,96615.0,96614.0,0.0004255]
[1739976088652,0.15525,96618.0,96614.0,0.0004255]
[1739976088870,0.206978,96629.0,96617.0,0.007]
[1739976089079,0.01622194,96621.0,96614.0,0.0004255]
[1739976089287,0.17146794,96621.0,96614.0,0.0004255]
[1739976089500,0.155255,96615.0,96614.0,0.0064255]
[1739976089715,0.155255,96615.0,96614.0,0.0124255]
[1739976090963,0.155255,96615.0,96614.0,0.0064255]
[1739976091399,0.155255,96615.0,96614.0,0.0004255]
[1739976092042,0.155255,96615.0,96614.0,0.0044255]
[1739976092192,0.01622194,96621.0,96614.0,0.0094255]
[1739976092398,0.155255,96615.0,96614.0,0.0054255]
[1739976092721,0.155255,96615.0,96614.0,0.0114255]
[1739976093387,0.155255,96615.0,96614.0,0.0054255]
[1739976093615,1.47251204,96615.0,96614.0,0.0054255]
[1739976093822,1.69296804,96615.0,96614.0,0.0054255]
[1739976094026,1.75804504,96615.0,96614.0,0.00198688]
[1739976094230,0.155306,96583.0,96576.0,0.00824]
[1739976094416,0.155306,96583.0,96573.0,0.2331853]
[1739976094825,0.207067,96587.0,96573.0,0.3885073]
[1739976095035,0.155306,96583.0,96573.0,0.2331853]
[1739976095459,0.155306,96583.0,96582.0,0.0078524]
[1739976096917,0.207071,96586.0,96582.0,0.0078524]
[1739976097116,0.155306,96583.0,96582.0,0.0148524]
[1739976097329,0.155303,96585.0,96582.0,0.0148524]
[1739976097540,0.15,96595.0,96582.0,0.0148524]
[1739976097751,0.155299,96588.0,96582.0,0.0078524]
[1739976097959,0.01622621,96592.0,96582.0,0.0008524]
[1739976098172,0.01622621,96592.0,96582.0,0.0148524]
[1739976098408,0.155306,96583.0,96582.0,0.0078524]
[1739976098628,0.155306,96583.0,96582.0,0.0008524]
[1739976098856,0.155306,96583.0,96582.0,0.0058524]
[1739976099054,0.155306,96583.0,96582.0,0.0128524]
[1739976099400,0.155306,96583.0,96582.0,0.0058524]
[1739976099624,0.155306,96583.0,96582.0,0.0008524]
[1739976100648,0.305306,96583.0,96582.0,0.0008524]
[1739976100825,0.40780965,96583.0,96582.0,0.0078524]
[1739976101184,0.40780965,96583.0,96582.0,0.0138524]
[1739976101388,0.40780965,96583.0,96582.0,0.0068524]
[1739976101738,0.40780965,96583.0,96582.0,0.0008524]
[1739976104183,0.40980965,96583.0,96582.0,0.0008524]
[1739976104981,0.41180965,96583.0,96582.0,0.0008524]
[1739976105156,0.40980965,96583.0,96582.0,0.0008524]
[1739976105356,0.40780965,96583.0,96582.0,0.0008524]
[1739976105557,0.51223477,96583.0,96582.0,0.0018524]
[1739976105957,0.83643477,96583.0,96582.0,0.0018524]
[1739976106335,1.70366877,96583.0,96582.0,0.0018524]
[1739976106558,0.83643477,96583.0,96582.0,0.0018524]
[1739976107040,0.83643477,96583.0,96572.0,0.0008528]
[1739976107041,0.15,96577.0,96572.0,0.0008528]
[1739976107241,0.305339,96563.0,96562.0,0.0143982]
[1739976107449,0.305339,96563.0,96562.0,2e-07]
[1739976107450,2.34286665,96563.0,96562.0,2e-07]
[1739976107591,0.305364,96547.0,96546.0,6e-07]
[1739976107799,0.305393,96529.0,96528.0,0.0008528]
[1739976107998,0.90691965,96529.0,96528.0,0.0008528]
[1739976108282,0.95296519,96529.0,96528.0,0.0008528]
[1739976108482,1.27716519,96529.0,96528.0,0.0008528]
[1739976109287,0.305411,96518.0,96517.0,0.0004254]
[1739976109491,0.93401165,96518.0,96517.0,0.0004254]
[1739976109749,0.74589665,96518.0,96517.0,0.0004254]
[1739976109941,0.40791465,96518.0,96517.0,0.0004254]
[1739976110361,0.42415446,96518.0,96517.0,0.0004254]
[1739976110981,0.42415446,96518.0,96517.0,0.0034254]
[1739976111800,0.42415446,96518.0,96517.0,0.0064254]
[1739976112207,1.68868146,96518.0,96517.0,0.0064254]
[1739976112413,1.09667046,96518.0,96517.0,0.0064254]
[1739976112622,1.51232987,96518.0,96517.0,0.0064254]
[1739976112825,0.155462,96486.0,96485.0,0.0004257]
[1739976113450,0.155461,96487.0,96485.0,0.0004257]
[1739976114283,0.01920039,96486.0,96485.0,0.0004257]
[1739976114495,0.01920039,96486.0,96485.0,0.0034257]
[1739976114711,0.01920039,96486.0,96485.0,0.0044257]
[1739976114928,0.01920039,96486.0,96485.0,0.0014257]
[1739976115141,0.01920039,96486.0,96485.0,0.0004257]
[1739976115351,0.01920039,96486.0,96485.0,0.0034257]
[1739976115564,0.12170404,96486.0,96485.0,0.0034257]
[1739976115773,0.12170404,96486.0,96485.0,0.0004257]
[1739976115979,0.01920039,96486.0,96485.0,0.0004257]
[1739976116197,0.03544505,96486.0,96485.0,0.0004257]
[1739976116842,0.03644505,96486.0,96485.0,0.0004257]
[1739976117047,0.03744505,96486.0,96485.0,0.0004257]
[1739976117462,0.18012975,96510.0,96485.0,0.0004257]
[1739976117679,0.15543,96507.0,96486.0,0.08267538]
[1739976117879,0.01624367,96498.0,96492.0,0.155452]
[1739976118081,0.01624367,96498.0,96487.0,0.08403631]
[1739976118287,0.01624367,96498.0,96496.0,0.23812038]
[1739976118495,0.15,96517.0,96500.0,0.155439]
[1739976118668,0.01624071,96509.0,96496.0,0.08267538]
[1739976119344,0.155431,96506.0,96496.0,0.08267538]
[1739976119528,0.01624071,96509.0,96496.0,0.08267538]
[1739976120085,0.01624071,96509.0,96496.0,0.08310138]
[1739976120292,0.155432,96506.0,96496.0,0.08310138]
[1739976120513,0.001,96498.0,96496.0,0.09010138]
[1739976121053,0.01624071,96509.0,96496.0,0.08310138]
[1739976121242,0.155431,96506.0,96496.0,0.08710138]
[1739976121588,0.01624071,96509.0,96496.0,0.08410138]
[1739976121758,0.155443,96498.0,96496.0,0.006426]
[1739976121959,0.155441,96500.0,96496.0,0.005426]
[1739976122158,0.01624071,96509.0,96496.0,0.001426]
[1739976122370,0.155436,96503.0,96496.0,0.001426]
[1739976122569,0.155438,96502.0,96496.0,0.001426]
[1739976122837,0.155444,96498.0,96496.0,0.001426]
[1739976122977,0.15543,96506.0,96496.0,0.001426]
[1739976123374,0.155438,96502.0,96496.0,0.001426]
[1739976123584,0.18012975,96510.0,96496.0,0.001426]
[1739976123585,0.18012975,96510.0,96496.0,0.003426]
[1739976123808,0.18012975,96510.0,96496.0,0.000426]
[1739976124013,0.155444,96498.0,96496.0,0.000426]
[1739976124285,0.38736275,96510.0,96496.0,0.003426]
[1739976124620,0.207234,96509.0,96496.0,0.000426]
[1739976124834,0.155443,96498.0,96496.0,0.001426]
[1739976125041,0.25250365,96497.0,96496.0,0.000426]
[1739976125241,1.43806965,96497.0,96496.0,0.000426]
[1739976125448,1.19989465,96497.0,96496.0,0.003426]
[1739976125801,1.33888765,96497.0,96496.0,0.003426]
[1739976126655,1.33888765,96497.0,96496.0,0.000426]
[1739976126848,1.45763581,96497.0,96496.0,0.000426]
[1739976127264,1.46463581,96497.0,96496.0,0.001426]
[1739976127451,1.36213216,96497.0,96496.0,0.001426]
[1739976127652,1.36813216,96497.0,96496.0,0.002426]
[1739976127854,1.36113216,96497.0,96496.0,0.001426]
[1739976128059,1.36113216,96497.0,96496.0,0.002426]
[1739976128280,1.47063581,96497.0,96496.0,0.002426]
[1739976128460,1.47063581,96497.0,96485.0,0.0004257]
[1739976128461,0.380762,96486.0,96485.0,0.0004257]
[1739976128637,1.90191165,96486.0,96485.0,0.0004257]
[1739976128818,1.47345665,96486.0,96485.0,0.0004257]
[1739976129015,1.41715765,96486.0,96485.0,0.0004257]
[1739976129225,0.74841087,96486.0,96485.0,0.0004257]
[1739976129435,0.64590722,96486.0,96485.0,0.0004257]
[1739976129636,0.49044522,96486.0,96485.0,0.0004257]
[1739976130253,0.59294887,96486.0,96485.0,0.0004257]
[1739976130482,0.59594887,96486.0,96485.0,0.0004257]
[1739976130887,1.4095533,96486.0,96485.0,0.0004257]
[1739976131028,1.4085533,96486.0,96485.0,0.0004257]
[1739976131242,1.4115533,96486.0,96485.0,0.0004257]
[1739976131436,1.4135533,96486.0,96485.0,0.0004257]
[1739976131645,1.4105533,96486.0,96485.0,0.0004257]
[1739976131847,1.51305695,96486.0,96485.0,0.0004257]
[1739976132051,1.51605695,96486.0,96485.0,0.0004257]
[1739976133172,1.51805695,96486.0,96485.0,0.0004257]
[1739976133577,1.51635258,96486.0,96485.0,7e-07]
[1739976133772,0.84495658,96486.0,96485.0,7e-07]
[1739976134656,0.74245293,96486.0,96485.0,7e-07]
[1739976134859,0.305493,96467.0,96466.0,0.0143982]
[1739976135071,2.74722965,96467.0,96466.0,0.0143982]
[1739976135280,2.74655165,96467.0,96466.0,0.0143982]
[1739976135483,3.19565165,96467.0,96466.0,0.0143982]
[1739976135607,3.24566541,96467.0,96466.0,0.0143982]
[1739976135809,1.44766241,96467.0,96466.0,0.0143982]
[1739976136010,1.37256241,96467.0,96466.0,0.0143982]
[1739976136991,1.39581215,96467.0,96466.0,0.0193982]
[1739976137203,0.95524915,96467.0,96466.0,0.0183982]
[1739976137411,0.64296715,96467.0,96466.0,0.0183982]
[1739976137618,0.2192635,96467.0,96466.0,0.0143982]
[1739976137834,0.47726015,96467.0,96466.0,0.0143982]
[1739976138033,1.15886015,96467.0,96466.0,0.0143982]
[1739976138251,2.64474507,96467.0,96466.0,0.0143982]
[1739976138449,2.94950992,96467.0,96466.0,2e-07]
[1739976138655,1.00555892,96467.0,96466.0,2e-07]
[1739976138967,1.02555892,96467.0,96466.0,2e-07]
[1739976139374,1.02255892,96467.0,96466.0,2e-07]
[1739976139712,1.02255892,96467.0,96466.0,0.0010002]
[1739976139912,1.02255892,96467.0,96466.0,2e-07]
[1739976140124,1.03037786,96467.0,96466.0,2e-07]
[1739976140334,1.03037786,96467.0,96420.0,0.000426]
[1739976140335,0.305512,96455.0,96420.0,0.000426]
[1739976140526,0.155567,96421.0,96420.0,0.000426]
[1739976140730,0.25807065,96421.0,96420.0,0.000426]
[1739976140931,0.10250365,96421.0,96420.0,0.000426]
[1739976141139,0.11875789,96421.0,96420.0,0.000426]
[1739976141344,0.16877165,96421.0,96420.0,0.000426]
[1739976142133,0.066268,96421.0,96420.0,0.000426]
[1739976142749,0.01625424,96421.0,96420.0,0.000426]
[1739976142958,0.207302,96478.0,96420.0,0.000426]
[1739976142959,0.18012975,96440.0,96424.0,0.0822]
[1739976143160,0.18012975,96450.0,96427.0,0.08267538]
[1739976143340,0.207395,96434.0,96427.0,0.08267538]
[1739976143544,0.18012975,96460.0,96437.0,0.08267538]
[1739976143749,0.3242,96467.0,96437.0,0.08267538]
[1739976143750,0.3242,96482.0,96449.0,0.1267]
[1739976143969,0.18012975,96470.0,96450.0,0.00103671]
[1739976144200,0.18012975,96470.0,96449.0,0.1267]
[1739976144441,0.18012975,96480.0,96469.0,0.08267538]
[1739976144649,0.18012975,96479.0,96469.0,0.08167538]
[1739976144850,0.18012975,96479.0,96469.0,0.00888]
[1739976145000,0.155482,96475.0,96469.0,0.00888]
[1739976145201,0.18012975,96479.0,96469.0,0.00888]
[1739976145402,0.155479,96476.0,96469.0,0.00888]
[1739976145604,0.357314,96472.0,96440.0,0.00888]
[1739976145807,0.18012975,96450.0,96440.0,0.00888]
[1739976146004,0.15,96449.0,96440.0,0.00888]
[1739976146234,0.155533,96443.0,96432.0,0.0827]
[1739976146492,0.155535,96441.0,96432.0,0.0827]
[1739976146700,0.155539,96439.0,96426.0,0.00888]
[1739976146887,0.10250365,96439.0,96423.0,0.09098]
[1739976147187,0.15,96437.0,96414.0,0.00888]
[1739976147399,0.18012975,96430.0,96414.0,0.00888]
[1739976147599,0.2826334,96430.0,96414.0,0.00888]
[1739976147845,0.155566,96422.0,96414.0,0.00888]
[1739976148027,0.155566,96422.0,96400.0,0.0004]
[1739976148028,0.15,96421.0,96400.0,0.0004]
[1739976148241,0.25250365,96421.0,96400.0,0.00928]
[1739976148812,0.26875906,96421.0,96400.0,0.0004]
[1739976149375,0.35267507,96421.0,96400.0,0.0004]
[1739976149582,1.22476307,96421.0,96400.0,0.0004]
[1739976149789,0.85234207,96421.0,96400.0,0.0004]
[1739976150201,0.86458199,96421.0,96400.0,0.0004]
[1739976151041,0.87058199,96421.0,96400.0,0.0004]
[1739976151752,1.19478199,96421.0,96400.0,0.0004]
[1739976152130,1.20932284,96421.0,96400.0,0.0004]
[1739976152321,0.3056,96401.0,96400.0,0.0004]